Cogmind - Beta 15 @@@ ROGUE MODE // 2025.09.29 @ 19:34:14 Player: Autumn Result: Core destroyed Performance ------------- Evolutions (3) 1500 Regions Visited (6) 1200 Robots Destroyed (34) 170 Value Destroyed (1026) 1026 Prototype IDs (2) 40 Alien Tech Used (0) 0 Bonus (0) 0 TOTAL SCORE: 3936 Bonus ------- None Cogmind --------- Core Integrity 0/700 Matter 235/300 Energy 39/100 System Corruption 13% Temperature Cool (0) Movement Core (50) Location -7/Factory Parts ------- > --- POWER (2) -------- (None) > --- PROPULSION (4) --- (None) > --- UTILITY (4) ------ Melee Analysis Suite Hacking Suite > --- WEAPON (3) ------- Remote Datajack > --- INVENTORY (5) ---- Target Analyzer Peak State ------------ > --- POWER ------------ Heavy Ion Engine Antimatter Reactor > --- PROPULSION ------- Heavy Treads Heavy Treads > --- UTILITY ---------- Small Storage Unit Advanced Targeting Computer Melee Analysis Suite Hacking Suite > --- WEAPON ----------- Arc Projector Gauss Rifle Lance > --- INVENTORY -------- Light Ion Engine Titanium Leg Titanium Leg Titanium Leg Small Laser Heavy Laser Light Assault Rifle [Rating: 59] Favorites ----------- Power Heavy Ion Engine Engine Heavy Ion Engine Power Core Light Nuclear Core Reactor Antimatter Reactor Propulsion Titanium Leg Treads Heavy Treads Leg Titanium Leg Flight Unit Flight Unit Utility Small Storage Unit Storage Small Storage Unit Processor Advanced Targeting Computer Hackware Hacking Suite Weapon Arc Projector Energy Gun Arc Projector Energy Cannon Improved EM Pulse Cannon Ballistic Gun Light Assault Rifle Launcher Missile Launcher Special Weapon Mining Laser Piercing Weapon Lance Build | -11 -10 -10 -8 -7 -7 -7 ------- Run | Yrd Mat Sub Mat Fac Was Fac Slots Evolved 6 | . . . 4 2 . . Power 1 | . . . . 1 . . Propulsion 2 | . . . 2 . . . Utility 2 | . . . 1 1 . . Weapon 1 | . . . 1 . . . Parts Attached 48 | 6 8 . 6 2 1 25 Power 7 | 1 1 . . . . 5 Engine 5 | 1 1 . . . . 3 Core 1 | . . . . . . 1 Reactor 1 | . . . . . . 1 Propulsion 13 | 2 3 . 2 . . 6 Treads 2 | . . . . . . 2 Leg 6 | 2 . . . . . 4 Wheel . | . . . . . . . Hover . | . . . . . . . Flight 5 | . 3 . 2 . . . Utility 7 | 1 1 . 3 1 . 1 Device . | . . . . . . . Storage 2 | 1 1 . . . . . Processor 4 | . . . 2 1 . 1 Hackware 1 | . . . 1 . . . Protection . | . . . . . . . Artifact . | . . . . . . . Weapon 21 | 2 3 . 1 1 1 13 Energy Gun 9 | . . . 1 1 . 7 Energy Cannon 1 | . . . . . . 1 Ballistic Gun 6 | 2 2 . . . . 2 Ballistic Cannon . | . . . . . . . Launcher 2 | . . . . . . 2 Special Weapon 2 | . 1 . . . . 1 Impact Weapon . | . . . . . . . Slashing Weapon . | . . . . . . . Piercing Weapon 1 | . . . . . 1 . Special Melee Weapon . | . . . . . . . Unidentified Prototypes 1 | . . . . . . 1 Parts Lost 28 | . 1 . 2 . . 25 Power 5 | . . . . . . 5 Propulsion 6 | . 1 . . . . 5 Utility 2 | . . . . . . 2 Weapon 15 | . . . 2 . . 13 Highest Loss Streak 8 | . 1 . 2 . . 8 To Critical Strikes . | . . . . . . . Average Backups 4 | 2 3 5 2 1 3 4 Power . | . . . . 1 1 . Propulsion 1 | . . 2 . . 1 1 Utility . | . . 1 . . . . Weapon 2 | 1 1 2 1 . . 2 Tool/Special . | . . . . . . . Unused Backups 1 | . . . . . . 1 Power . | . . . . . . . Propulsion . | . . . . . . . Utility 1 | . . . . . . 1 Weapon . | . . . . . . . Tool/Special . | . . . . . . . Average Slot Usage (%) 81 | . 78 71 85 88 92 80 Engine 6 | . 14 14 9 7 7 5 Reactor 2 | . . . . . . 3 Treads 2 | . . . . . . 3 Leg 12 | . 16 . . . . 14 Flight 5 | . 11 28 32 30 30 . Storage 6 | . 7 . 7 7 7 6 Processor 12 | . . . 11 14 15 14 Hackware 5 | . . . . 7 7 7 Energy Gun 10 | . . . 3 12 15 12 Energy Cannon 1 | . . . . . . 1 Ballistic Gun 7 | . 27 23 16 7 . 3 Peak Build Rating 59 | 6 6 5 13 21 29 59 Average Rating 31 | 3 5 5 11 20 27 39 On Entrance 11 | . 6 5 5 13 21 29 Naked Turns . | . . . . . . . Heaviest Build 41 | 14 19 5 11 14 16 41 Greatest Support 140 | 20 20 8 16 16 16 140 Greatest Overweight (x) 5 | . . . . . . 5 Average Overweight (x) . | . . . . . . . Largest Inventory Capacity 10 | 8 10 5 8 8 8 8 Average Capacity 7 | 7 7 5 7 8 8 7 Most Carried 8 | 5 5 5 4 4 7 8 Average Carried 4 | 2 3 5 2 1 5 5 Final Capacity 8 | 8 5 5 8 8 8 5 Final Carried 7 | 2 5 5 2 1 7 1 Class Distribution -------------------- 37% | Gunner 22% | Mutant 12% | Scavenger-Tank 12% | Scavenger-Sprinter 7% | Scavenger-Mutant 6% | Tank Dominant Class ---------------- Mutant | -10/Materials Scavenger-Mutant | -10/Subcaves Scavenger-Sprinter | -8/Materials Scavenger-Sprinter | -7/Factory Scavenger-Sprinter | -7/Waste Gunner | -7/Factory Resources | -11 -10 -10 -8 -7 -7 -7 ----------- Run | Yrd Mat Sub Mat Fac Was Fac Matter Collected 1017 | 260 119 . . . 165 473 Remotely . | . . . . . . . Salvage Created 1243 | . 119 . . . . 1124 Parts 74 | . 11 . . . . 63 Haulers Intercepted 1 | . . . . . . 1 Recyclers Shooed 1 | . . . . . . 1 Parts Field Recycled . | . . . . . . . Retrieved Matter . | . . . . . . . Parts Self-Destructed . | . . . . . . . Prevented . | . . . . . . . Kills | -11 -10 -10 -8 -7 -7 -7 ------- Run | Yrd Mat Sub Mat Fac Was Fac Combat Hostiles Destroyed 25 | . 6 . . . . 19 Melee 8 | . . . . . . 8 Guns 15 | . 6 . . . . 9 AOE 2 | . . . . . . 2 Classes Destroyed 11 | . 2 . . . . 9 Worker 2 | . . . . . . 2 Builder 1 | . . . . . . 1 Tunneler 1 | . 1 . . . . . Hauler 1 | . . . . . . 1 Recycler 3 | . . . . . . 3 Mechanic 1 | . . . . . . 1 Swarmer 10 | . 6 . . . . 4 Grunt 7 | . . . . . . 7 Sentry 1 | . . . . . . 1 Hunter 1 | . . . . . . 1 Programmer 6 | . . . . . . 6 Best Kill Streak 4 | . 4 . . . . 4 Combat Bots Only 3 | . 3 . . . . 3 Max Kills in Single Turn 2 | . 2 . . . . 2 Gunslinging 1 | . 1 . . . . . Exploded 1 | . . . . . . 1 Melee 1 | . . . . . . 1 Uniques/NPCs Destroyed . | . . . . . . . Combat | -11 -10 -10 -8 -7 -7 -7 -------- Run | Yrd Mat Sub Mat Fac Was Fac Hostile Shots Fired 449 | . 32 . 17 1 . 399 Missed 135 | . 7 . 7 1 . 120 Hits 314 | . 25 . 10 . . 279 Projectile 314 | . 25 . 10 . . 279 Critical Strikes 6 | . . . . . . 6 Part Disruptions 1 | . . . . . . 1 Damage Taken 3765 | . 202 . 163 . . 3400 Core 784 | . 44 . 13 . . 727 Absorbed by Shields . | . . . . . . . Regen/Repaired (Parts) 280 | . . . . . . 280 Core Remaining (%) 93 | 100 . 82 97 . . . Volleys Fired 96 | . 19 4 11 1 . 61 Largest 3 | . 2 1 2 1 . 3 Hottest 179 | . 100 100 100 20 . 179 Shots Fired 181 | . 34 4 18 1 . 124 Gun 147 | . 30 . 14 1 . 102 Cannon 12 | . . . . . . 12 Launcher 9 | . . . . . . 9 Special 13 | . 4 4 4 . . 1 Kinetic 64 | . 30 . 14 1 . 19 Thermal 54 | . 4 4 4 . . 42 Explosive 9 | . . . . . . 9 Electromagnetic 53 | . . . . . . 53 Robot Hit Streak 22 | . 8 . 5 6 . 22 Robot Miss Streak 7 | . 2 . 2 . . 7 Penetration Max 1 | . . . . . . 1 Secondary Targets 1 | . 1 . . . . . Max Gunslinging Chain 1 | . 1 . . . . . Shots Hit Robots 135 | . 19 . 8 1 . 107 Core Hits 81 | . 10 . 3 . . 68 Critical Kills . | . . . . . . . Critical Parts Destroyed 2 | . 1 . . . . 1 Critical Strikes 5 | . 1 . . . . 4 Burn 1 | . . . . . . 1 Destroy 2 | . 1 . . . . 1 Impale 2 | . . . . . . 2 Melee Attacks 19 | . . . . . . 19 Impact . | . . . . . . . Slashing . | . . . . . . . Piercing 19 | . . . . . . 19 Sneak Attacks 1 | . . . . . . 1 Combat Hostiles . | . . . . . . . Follow-up Attacks . | . . . . . . . Damage Inflicted 3148 | . 198 . 56 8 . 2886 Guns 1721 | . 192 . 56 8 . 1465 Cannons 117 | . . . . . . 117 Explosions 772 | . . . . . . 772 Melee 481 | . . . . . . 481 Ramming 57 | . 6 . . . . 51 Kinetic 731 | . 192 . 56 8 . 475 Thermal 813 | . . . . . . 813 Explosive 641 | . . . . . . 641 Electromagnetic 425 | . . . . . . 425 Impact . | . . . . . . . Slashing . | . . . . . . . Piercing 481 | . . . . . . 481 Highest Corruption 13 | . . . . . . 13 Average Corruption 4 | . . . . . . 4 Corruption Purged . | . . . . . . . Corruption Blocked . | . . . . . . . Effects 38 | . . . . . . 38 Message Errors 6 | . . . . . . 6 Matter Fused 10 | . . . . . . 10 Heat Flow Errors 3 | . . . . . . 3 Energy Discharges 9 | . . . . . . 9 Data Loss (minor) 5 | . . . . . . 5 Data Loss (major) 2 | . . . . . . 2 Misfires 1 | . . . . . . 1 Misdirections 1 | . . . . . . 1 Weapon Failures 1 | . . . . . . 1 Overload Shots . | . . . . . . . Overflow Damage 71 | . . . . . . 71 Projectiles . | . . . . . . . Explosions 30 | . . . . . . 30 Melee 41 | . . . . . . 41 Knockbacks . | . . . . . . . Impact . | . . . . . . . Kinetic . | . . . . . . . Secondary . | . . . . . . . Self-Inflicted Damage 60 | . . . . . . 60 Shots 3 | . . . . . . 3 Rammed 21 | . . . . . . 21 Targets Rammed 26 | . 2 . . . . 24 Kicked 5 | . 2 . . . . 3 Crushed . | . . . . . . . Highest Temperature 581 | . 116 . 48 . . 581 Average Temperature 119 | . 33 . 18 . . 138 Received Heat Transfer 426 | . . . 18 . . 408 Effects 15 | . . . . . . 15 Shutdowns 3 | . . . . . . 3 Energy Bleed 2 | . . . . . . 2 Interference 6 | . . . . . . 6 Short Circuit 1 | . . . . . . 1 Damage (major) 3 | . . . . . . 3 Siege Activations . | . . . . . . . Martial Activations . | . . . . . . . Shielding Activations . | . . . . . . . Robots Disrupted 1 | . . . . . . 1 Combat Hostiles . | . . . . . . . Robots Corrupted . | . . . . . . . Combat Hostiles . | . . . . . . . Parts Fried 1 | . . . . . . 1 Impact Corruptions . | . . . . . . . Robots Melted . | . . . . . . . Combat Hostiles . | . . . . . . . Parts Melted 1 | . . . . . . 1 Heat Transferred 1322 | . . . . . . 1322 Parts Sabotaged . | . . . . . . . Parts Stolen . | . . . . . . . Parts Stripped . | . . . . . . . Power Chain Reactions 2 | . . . . . . 2 Alert | -11 -10 -10 -8 -7 -7 -7 ------- Run | Yrd Mat Sub Mat Fac Was Fac Maximum Alert Level . | . . . . . . . Low Security (%) 100 | 100 100 . 100 100 100 100 Level 1 . | . . . . . . . Level 2 . | . . . . . . . Level 3 . | . . . . . . . Level 4 . | . . . . . . . Level 5 . | . . . . . . . High Security . | . . . . . . . Max Security . | . . . . . . . Peak Influence 95 | . 86 . 42 15 1 95 Initial 14 | . . . 4 14 1 . Average 26 | . 29 . 9 9 . 29 Influence Increases 934 | . 147 . 84 15 . 688 Destroy 0b10 Robot/C 500 | . 120 . . . . 380 Destroy 0b10 Robot/NC 45 | . 5 . . . . 40 Destroy Leader 142 | . 20 . . . . 122 Successful Hack 27 | . . . 5 . . 22 Disable Machine 15 | . . . . . . 15 Destroy Structure 40 | . 2 . 4 . . 34 Partial Spotted 45 | . . . 15 . . 30 Lose Combat Pursuer 120 | . . . 60 15 . 45 Influence Decreases 934 | . 90 48 61 42 5 688 Entered New Map 55 | . . 28 5 18 4 . Time Decay 631 | . 80 20 36 24 1 470 Lost Part 243 | . 10 . 20 . . 213 Lost Ally 5 | . . . . . . 5 Squads Dispatched 12 | . . . 1 1 . 10 Investigation 3 | . . . . . . 3 Extermination 4 | . . . . . . 4 Reinforcement 5 | . . . 1 1 . 3 Assault . | . . . . . . . Garrison . | . . . . . . . Intercept . | . . . . . . . Searches Triggered . | . . . . . . . Construction Impeded 2 | . . . . . . 2 Haulers Reinforced . | . . . . . . . Active Scanning Responses . | . . . . . . . Cargo Convoy Interrupts . | . . . . . . . Stealth | -11 -10 -10 -8 -7 -7 -7 --------- Run | Yrd Mat Sub Mat Fac Was Fac Distress Signals 1 | . . . 1 . . . Communications Jammed . | . . . . . . . Distress Signals . | . . . . . . . Times Spotted 45 | . 6 2 8 2 . 27 Peak Tracking Total 6 | . 3 2 6 1 . 4 Tactical Retreats 4 | . . . 2 1 . 1 Traps | -11 -10 -10 -8 -7 -7 -7 ------- Run | Yrd Mat Sub Mat Fac Was Fac Traps Triggered 1 | . . . . 1 . . Indirectly . | . . . . . . . Trap Hack Attempts . | . . . . . . . Triggered . | . . . . . . . Disarmed . | . . . . . . . Reprogrammed . | . . . . . . . Reused . | . . . . . . . Traps Extracted . | . . . . . . . Installed . | . . . . . . . Triggered . | . . . . . . . Machines | -11 -10 -10 -8 -7 -7 -7 ---------- Run | Yrd Mat Sub Mat Fac Was Fac Machines Disabled 1 | . . . . . . 1 Max in Single Turn 1 | . . . . . . 1 Garrison Access 2 | . . . . . . 2 Machines Repaired . | . . . . . . . Machines Dismantled . | . . . . . . . Machines Sabotaged . | . . . . . . . Overloaded Fab Kills . | . . . . . . . Hacking | -11 -10 -10 -8 -7 -7 -7 --------- Run | Yrd Mat Sub Mat Fac Was Fac Machines Accessed 8 | . . . 2 . . 6 Terminals 3 | . . . 1 . . 2 Fabricators . | . . . . . . . Repair Stations 2 | . . . . . . 2 Recycling Units . | . . . . . . . Scanalyzers 1 | . . . 1 . . . Garrison Access 2 | . . . . . . 2 Total Hacks 20 | . . . 6 . . 14 Successful 11 | . . . 3 . . 8 Failed 9 | . . . 3 . . 6 Catastrophic 1 | . . . . . . 1 Database Lockouts . | . . . . . . . Manual . | . . . . . . . Terminals 10 | . . . 4 . . 6 Fabricators . | . . . . . . . Repair Stations 5 | . . . . . . 5 Recycling Units . | . . . . . . . Scanalyzers 2 | . . . 2 . . . Garrison Access 3 | . . . . . . 3 Terminal Hacks 5 | . . . 1 . . 4 Record 3 | . . . . . . 3 Alert Level 1 | . . . . . . 1 Zone Layout 1 | . . . 1 . . . Fabricator Hacks . | . . . . . . . Repair Station Hacks 2 | . . . . . . 2 Scan Component 1 | . . . . . . 1 Repair 1 | . . . . . . 1 Recycling Unit Hacks . | . . . . . . . Scanalyzer 2 | . . . 2 . . . Insert Component 1 | . . . 1 . . . Analyze 1 | . . . 1 . . . Garrison Access Hacks 2 | . . . . . . 2 Seal Access 2 | . . . . . . 2 Unauthorized Hacks . | . . . . . . . Terminals . | . . . . . . . Fabricators . | . . . . . . . Repair Stations . | . . . . . . . Recycling Units . | . . . . . . . Scanalyzers . | . . . . . . . Garrison Access . | . . . . . . . Data Cores Recovered . | . . . . . . . Used . | . . . . . . . Hacking Detections 5 | . . . 1 . . 4 Full Trace Events 3 | . . . . . . 3 Feedback Events . | . . . . . . . Feedback Blocked . | . . . . . . . Robot Schematics Acquired . | . . . . . . . Robots Built . | . . . . . . . Authchips . | . . . . . . . Time . | . . . . . . . Total Robot Build Rating . | . . . . . . . Part Schematics Acquired 1 | . . . 1 . . . Parts Built . | . . . . . . . Authchips . | . . . . . . . Time . | . . . . . . . Total Part Build Rating . | . . . . . . . Parts Repaired 1 | . . . . . . 1 Time 39 | . . . . . . 39 Parts Recycled . | . . . . . . . Recycled Matter . | . . . . . . . Retrieved Matter . | . . . . . . . Retrieved Components . | . . . . . . . Parts Scanalyzed 1 | . . . 1 . . . Part Schematics Acquired 1 | . . . 1 . . . Parts Damaged . | . . . . . . . Bothacking | -11 -10 -10 -8 -7 -7 -7 ------------ Run | Yrd Mat Sub Mat Fac Was Fac Used RIF Installer . | . . . . . . . Robots Hacked 1 | . . . . . . 1 Non-combat . | . . . . . . . Combat 1 | . . . . . . 1 Robot Hacks Applied 1 | . . . . . . 1 parse_system 1 | . . . . . . 1 Relay Couplers Released . | . . . . . . . Fabnet Peak Effective % . | . . . . . . . Robots Rewired . | . . . . . . . Allies Hacked . | . . . . . . . Hacks Repelled . | . . . . . . . Allies | -11 -10 -10 -8 -7 -7 -7 -------- Run | Yrd Mat Sub Mat Fac Was Fac Total Allies 1 | . . . . . 1 . Largest Group 1 | . . . . . 1 1 Highest-Rated Group 31 | . . . . . 31 31 Highest-Rated Ally 31 | . . . . . 31 31 Total Orders . | . . . . . . . Ally Attacks 3 | . . . . . . 3 Total Damage 65 | . . . . . . 65 Kills . | . . . . . . . Allies Corrupted . | . . . . . . . Allies Melted . | . . . . . . . Intel | -11 -10 -10 -8 -7 -7 -7 ------- Run | Yrd Mat Sub Mat Fac Was Fac Active Infowar (turns) . | . . . . . . . Robot Analysis Total . | . . . . . . . Derelict Logs Recovered . | . . . . . . . Drone Launches . | . . . . . . . Drone Recoveries . | . . . . . . . Exploration | -11 -10 -10 -8 -7 -7 -7 ------------- Run | Yrd Mat Sub Mat Fac Was Fac Turns Passed 2877 | 62 309 55 144 69 96 2142 Spaces Moved 1887 | 53 305 71 304 126 125 903 Core 33 | 21 . . . . . 12 Treads 362 | . . . . . . 362 Legs 579 | 32 103 . . . . 444 Wheels . | . . . . . . . Hover . | . . . . . . . Flight 913 | . 202 71 304 126 125 85 Fastest Speed 31 | 50 37 37 31 31 31 31 Average Speed 87 | 92 65 37 31 31 31 133 Slowest Speed 300 | 120 120 37 37 31 31 300 Overloaded Moves . | . . . . . . . Propulsion Burnouts . | . . . . . . . Robots Hopped 4 | . . . 4 . . . Potential Cave-ins . | . . . . . . . Cave-ins Triggered . | . . . . . . . Exploration Rate (%) 20 | 3 20 4 20 3 73 18 Regions Visited 6 Branch Regions 1 Pre-discovered Areas 1 | . . 1 . . . . Known Exits Taken . | . . . . . . . Unknown Exits Taken 4 | 1 1 1 1 . . . Scrap Searched . | . . . . . . . Spaces Dug 5 | . 1 . 4 . . . Terrain Destroyed 63 | . 2 . 4 . . 57 Melee . | . . . . . . . Projectile 6 | . 2 . 4 . . . AOE 57 | . . . . . . 57 Terrain Rammed . | . . . . . . . Walls Destroyed . | . . . . . . . Machines Disabled . | . . . . . . . Actions | -11 -10 -10 -8 -7 -7 -7 --------- Run | Yrd Mat Sub Mat Fac Was Fac Total 2883 | 66 375 86 323 155 181 1697 Wait 722 | . 27 10 . 23 52 610 Move 1874 | 52 304 70 295 126 124 903 Hop 4 | . . . 4 . . . Pick Up 57 | 8 9 . 4 2 4 30 Fast Attach . | . . . . . . . Attach 45 | 6 1 . 6 3 . 29 Detach . | . . . . . . . Swap 20 | . 7 2 3 . 1 7 Drop 21 | . 6 . . . . 15 Fire 96 | . 19 4 11 1 . 61 Melee 19 | . . . . . . 19 Ram 3 | . . . . . . 3 Kick 5 | . 2 . . . . 3 Crush 17 | . . . . . . 17 Escape Stasis . | . . . . . . . Rewire . | . . . . . . . Trap . | . . . . . . . Miscellaneous . | . . . . . . . Route ------- -11/Scrapyard -10/Materials (discovered 2 exits: [*Min] / [*Sub]) -10/Subcaves -8/Materials -7/Factory -7/Waste -7/Factory History --------- Turn | Location | Event 10 | -11/Scrapyard | Discovered new exit (range 16) 63 | -11/Scrapyard | Entered Materials 64 | -10/Materials | Met a group of wandering Federalists 106 | -10/Materials | Discovered new exit (range 5) 316 | -10/Materials | Discovered new exit (range 13) 372 | -10/Materials | Entered Subcaves 373 | -10/Subcaves | Continued accompanying wandering Federalists (6) 373 | -10/Subcaves | Approached by a straggling Scientist 389 | -10/Subcaves | Learned location of Zion (-7) 389 | -10/Subcaves | Met a Zionite searching for "candidates" 395 | -10/Subcaves | Discovered new exit (range 12) 427 | -10/Subcaves | Entered Materials 427 | -8/Materials | Evolved 4 slots: Propulsion x2, Utility x1, Weapon x1 559 | -8/Materials | Discovered new exit (range 16) 571 | -8/Materials | Entered Factory 571 | -7/Factory | Evolved 2 slots: Power x1, Utility x1 640 | -7/Factory | Sucked down chute 640 | -7/Factory | Entered Waste 640 | -7/Waste | The area was eerily silent 641 | -7/Waste | Met a frightened Derelict 703 | -7/Waste | Build established: Scavenger-Sprinter 713 | -7/Waste | Discovered new exit (range 12) 736 | -7/Waste | Entered Factory 736 | -7/Factory | Accompanied by 1 ally 1497 | -7/Factory | Repaired Broken Hvy. Treads 1836 | -7/Factory | Lost 5 parts (2p3w) 2103 | -7/Factory | Build established: Scavenger-Tank 2196 | -7/Factory | Lost 5 parts (2p1n2w) 2454 | -7/Factory | Build established: Gunner 2656 | -7/Factory | Core integrity fell below 50% 2680 | -7/Factory | System corruption reached 10% 2719 | -7/Factory | Lost 3 parts (1n2w) 2853 | -7/Factory | Core integrity fell below 20% 2878 | -7/Factory | Core destroyed Last Messages --------------- U-05 Engineer lays Concrete. Identified Remote Datajack. U-05 Engineer lays Concrete. Jacked Y-54 Guardian... Right-click on available options for more info. Keyboard players can use Shift-a~z. >>parse_system Reading system data... U-05 Engineer lays Concrete. K-01 Serf collects debris. U-05 Engineer lays Concrete. System corrupted: Matter fused (-8). U-05 Engineer lays Concrete. Arc Projector destroyed. Shock Rifle destroyed. U-05 Engineer lays Concrete. Slammed into Y-54 Guardian. Adv. Targeting Computer destroyed. Slammed into Y-54 Guardian. Destabilizing: Core damaged (-35). Map ----- +----------------------------------------------------+ | ????????????????# # """ """ """ # "" | | ??????????????### # """ """ """ # "" | | ??????????????? # """ """ """ # "" | | ??????????????? # # | | ??????????????# # ! ] # | | ??????????????# #######+########+## | | ??????????????# | | ?????????????????????# ## | | ?????????????????????# #? | | ?????????????????????# #? | | ?????????????????????# #? | | ?????????????????????# % #? | | ???????????????????"?## ############# | | ??????????????????"" ## # #????????# | | ??????????????????"" ## #########+##"##???????# | | ??????????????????? # # # #??????? | | ??????????????????## # # # #???????# ## | | ??????????????????# # ## #???????? #? | | ???????????????????# # # # #???????? #? | | ???????????????????# ##+###############???????? ? | | ???????????????????# # %k ##??????????? ? | | ???????????????????# # #????????????" ? | | ???????????????????# # "" #????????????? ? | | ?????????????????????# [ #??????????????? | | ?????????????????????# #??????????????? | | ?????????????????????# @Y #??????????????? | | ?????????????????????# #??????????????? | | ?????????????????????# #??????????????? | | ?????????????????????# """ #??????????????? | | ?????????????????????# uu #??????????????? | | ?????????????????????# #??????????????? | | ?????????????????????# uu #??????????????? | | ?????????????????????#########+#### #????? | | ??????????????? #????? | | ??????????????? ! #????? | | ??????????????? #????? | | ???????????????? ????? | | ???????????????? #????? | | ????????????????? ?????? | | ????????????????? ?????? | | ?????????????????################## ! ?????? | | ???????????????????????????????????## #??????? | | ????????????????????????????????????? #??????? | | ?????????????????????????????????????? ???????? | | ??????????????????????????????????????? ???????? | | ?????????????????????????????????????????????????? | | ?????????????????????????????????????????????????? | | ?????????????????????????????????????????????????? | | ?????????????????????????????????????????????????? | | ?????????????????????????????????????????????????? | +----------------------------------------------------+ Best States ------------- Heat Dissipation 34 Energy Generation 30 Energy Capacity 505 Matter Stores 300 Matter Capacity 300 Sight Range 16 Terrain Scan Density 10 Evasion (%) 63 Targeting Accuracy 13 Melee Accuracy 5 Recoil Reduction 4 Offensive Hacking 10 Item Schematics ----------------- Hvy. Ion Engine | -8/Materials | Scanalyzed Robot Schematics ------------------ None Fabricated ------------ Nothing Repaired ---------- Hvy. Treads | 44% | -7/Factory | Broken Alien Tech Used ----------------- None Achievements -------------- Fist Fight Part-time Mechanic Please Form A Line Safety First System Compromised Challenges ------------ None Game ------ Seed AuthchipPhysicsFacilitator Manual? 0 Play Time 00:39:31 Cumulative 5.5 hours Start 2025.09.29 @ 18:05:35 End 2025.09.29 @ 19:34:14 Sessions 1 Manual Loads 0 Difficulty Rogue Special Mode None Game No. 12 Rogue 12 Adventurer 0 Explorer 0 Win Type - Total 0 Types 0/0/0/0/0/0/0/0/0/0 Lore% 3 Gallery% 11 Achievement% 12 Wizard Run 0 Options --------- Layout 1 ASCII 0 Keyboard 0 Movement Arrows Keybinds 0 Fullscreen 1 Font 24/Smallcaps Map View 76x35 Zoom Use 0% Tactical HUD 0 Map Filters NONE Filters NONE Steam 1 RUN: bf1cda18-163e-4eca-822b-b85750f9a2ea